{"text_format":"3","workbook":"xlsx","n_sheets":2,"sheets":["Начало","Праздничный бюджет планировщик"],"not_rendered":{"defined_names":1},"read":"whole","date_system":"1900"}

{"sheet":"Начало","index":0,"n_rows":4,"n_cols":2,"rows_kept":4}
[null,"Как использовать этот шаблон"]
[null,"Отслеживайте свои расходы с помощью планировщика праздничного бюджета."]
[null,"Для начала введите Бюджет и Фактические расходы в каждую таблицу категорий."]
[null,"Праздничный бюджет, общая фактическая затраченная сумма и разница рассчитываются автоматически."]

{"sheet":"Праздничный бюджет планировщик","index":1,"n_rows":36,"n_cols":14,"rows_kept":36,"merged":[[0,2,5,7],[2,10,2,11],[8,2,8,5],[8,10,8,13],[18,2,18,5],[18,10,18,13],[29,2,29,5],[29,10,29,13]]}
[null,null,"Праздничный бюджет \nпланировщик"]
[]
[{"$nulls":10},"ПРАЗДНИЧНЫЙ БЮДЖЕТ",null,null,{"$f":"SUM(Подарки[Выделенные],Упаковка[Выделенные],(Путешествия[Выделенные],(Питание[Выделенные],(Развлечения[Выделенные],Прочее[Выделенные]))))","v":{"v":750,"d":"750.00 ₽"}}]
[{"$nulls":10},"ФАКТИЧЕСКИЕ РАСХОДЫ",null,null,{"$f":"SUM((Подарки[Фактические],(Упаковка[Фактические],(Путешествия[Фактические],(Питание[Фактические],(Развлечения[Фактические],(Прочее[Фактические])))))))","v":{"v":820,"d":"820.00 ₽"}}]
[]
[{"$nulls":10},"РАЗНИЦА (отклонение от бюджета)",null,null,{"$f":"SUM(N3-N4)","v":{"v":-70,"d":"-70.00 ₽"}}]
[]
[]
[null,null,"ПОДАРКИ",{"$nulls":7},"ПРАЗДНИЧНОЕ ПИТАНИЕ"]
[null,null,"Наименование","Выделенные","Фактические","Разница",{"$nulls":4},"Наименование","Выделенные","Фактические","Разница"]
[null,null,"Семья",{"v":500,"d":"500.00 ₽"},{"v":495,"d":"495.00 ₽"},{"$f":"Подарки[[#This Row],[Выделенные]]-Подарки[[#This Row],[Фактические]]","v":{"v":5,"d":"5.00 ₽"}},{"$nulls":4},"Продовольственные товары",null,null,{"$f":"Питание[[#This Row],[Выделенные]]-Питание[[#This Row],[Фактические]]","v":{"v":0,"d":"0.00 ₽"}}]
[null,null,"Друзья",{"v":250,"d":"250.00 ₽"},{"v":325,"d":"325.00 ₽"},{"$f":"Подарки[[#This Row],[Выделенные]]-Подарки[[#This Row],[Фактические]]","v":{"v":-75,"d":"-75.00 ₽"}},{"$nulls":4},"Алкогольные напитки",null,null,{"$f":"Питание[[#This Row],[Выделенные]]-Питание[[#This Row],[Фактические]]","v":{"v":0,"d":"0.00 ₽"}}]
[null,null,"Коллеги",null,null,{"$f":"Подарки[[#This Row],[Выделенные]]-Подарки[[#This Row],[Фактические]]","v":{"v":0,"d":"0.00 ₽"}},{"$nulls":4},"Оформление",null,null,{"$f":"Питание[[#This Row],[Выделенные]]-Питание[[#This Row],[Фактические]]","v":{"v":0,"d":"0.00 ₽"}}]
[null,null,"Преподаватели, воспитатели, няни и т. д.",null,null,{"$f":"Подарки[[#This Row],[Выделенные]]-Подарки[[#This Row],[Фактические]]","v":{"v":0,"d":"0.00 ₽"}},{"$nulls":4},"Другое (нажмите клавишу TAB в последнем столбце этой строки, чтобы добавить строку)",null,null,{"$f":"Питание[[#This Row],[Выделенные]]-Питание[[#This Row],[Фактические]]","v":{"v":0,"d":"0.00 ₽"}}]
[null,null,"Благотворительные пожертвования",null,null,{"$f":"Подарки[[#This Row],[Выделенные]]-Подарки[[#This Row],[Фактические]]","v":{"v":0,"d":"0.00 ₽"}},{"$nulls":7},{"$f":"Питание[[#This Row],[Выделенные]]-Питание[[#This Row],[Фактические]]","v":{"v":0,"d":"0.00 ₽"}}]
[null,null,"Другое (нажмите клавишу TAB в последнем столбце этой строки, чтобы добавить строку)",null,null,{"$f":"Подарки[[#This Row],[Выделенные]]-Подарки[[#This Row],[Фактические]]","v":{"v":0,"d":"0.00 ₽"}}]
[null,null,"Итог",{"$f":"SUBTOTAL(109,Подарки[Выделенные])","v":{"v":750,"d":"750.00 ₽"}},{"$f":"SUBTOTAL(109,Подарки[Фактические])","v":{"v":820,"d":"820.00 ₽"}},{"$f":"SUBTOTAL(109,Подарки[Разница])","v":{"v":-70,"d":"-70.00 ₽"}},{"$nulls":4},"Итог",{"$f":"SUBTOTAL(109,Питание[Выделенные])","v":{"v":0,"d":"0.00 ₽"}},{"$f":"SUBTOTAL(109,Питание[Фактические])","v":{"v":0,"d":"0.00 ₽"}},{"$f":"SUBTOTAL(109,Питание[Разница])","v":{"v":0,"d":"0.00 ₽"}}]
[]
[null,null,"УПАКОВКА",{"$nulls":7},"РАЗВЛЕЧЕНИЯ"]
[null,null,"Наименование","Выделенные","Фактические","Разница",{"$nulls":4},"Наименование","Выделенные","Фактические","Разница"]
[null,null,"Подарочная упаковка",null,null,{"$f":"Упаковка[[#This Row],[Выделенные]]-Упаковка[[#This Row],[Фактические]]","v":{"v":0,"d":"0.00 ₽"}},{"$nulls":4},"Обслуживание вечеринки (бармен, кейтеринговая компания, уборщики и т. д.)",null,null,{"$f":"Развлечения[[#This Row],[Выделенные]]-Развлечения[[#This Row],[Фактические]]","v":{"v":0,"d":"0.00 ₽"}}]
[null,null,"Ярлыки",null,null,{"$f":"Упаковка[[#This Row],[Выделенные]]-Упаковка[[#This Row],[Фактические]]","v":{"v":0,"d":"0.00 ₽"}},{"$nulls":4},"Оформление",null,null,{"$f":"Развлечения[[#This Row],[Выделенные]]-Развлечения[[#This Row],[Фактические]]","v":{"v":0,"d":"0.00 ₽"}}]
[null,null,"Расходные материалы (лента, клейкая лента и т. д.)",null,null,{"$f":"Упаковка[[#This Row],[Выделенные]]-Упаковка[[#This Row],[Фактические]]","v":{"v":0,"d":"0.00 ₽"}},{"$nulls":4},"Еда и напитки",null,null,{"$f":"Развлечения[[#This Row],[Выделенные]]-Развлечения[[#This Row],[Фактические]]","v":{"v":0,"d":"0.00 ₽"}}]
[null,null,"Коробки",null,null,{"$f":"Упаковка[[#This Row],[Выделенные]]-Упаковка[[#This Row],[Фактические]]","v":{"v":0,"d":"0.00 ₽"}},{"$nulls":4},"Одежда",null,null,{"$f":"Развлечения[[#This Row],[Выделенные]]-Развлечения[[#This Row],[Фактические]]","v":{"v":0,"d":"0.00 ₽"}}]
[null,null,"Почтовые расходы",null,null,{"$f":"Упаковка[[#This Row],[Выделенные]]-Упаковка[[#This Row],[Фактические]]","v":{"v":0,"d":"0.00 ₽"}},{"$nulls":4},"Билеты",null,null,{"$f":"Развлечения[[#This Row],[Выделенные]]-Развлечения[[#This Row],[Фактические]]","v":{"v":0,"d":"0.00 ₽"}}]
[null,null,"Другое (нажмите клавишу TAB в последнем столбце этой строки, чтобы добавить строку)",null,null,{"$f":"Упаковка[[#This Row],[Выделенные]]-Упаковка[[#This Row],[Фактические]]","v":{"v":0,"d":"0.00 ₽"}},{"$nulls":4},"Ужины вне дома",null,null,{"$f":"Развлечения[[#This Row],[Выделенные]]-Развлечения[[#This Row],[Фактические]]","v":{"v":0,"d":"0.00 ₽"}}]
[{"$nulls":10},"Другое (нажмите клавишу TAB в последнем столбце этой строки, чтобы добавить строку)",null,null,{"$f":"Развлечения[[#This Row],[Выделенные]]-Развлечения[[#This Row],[Фактические]]","v":{"v":0,"d":"0.00 ₽"}}]
[null,null,"Итог",{"$f":"SUBTOTAL(109,Упаковка[Выделенные])","v":{"v":0,"d":"0.00 ₽"}},{"$f":"SUBTOTAL(109,Упаковка[Фактические])","v":{"v":0,"d":"0.00 ₽"}},{"$f":"SUBTOTAL(109,Упаковка[Разница])","v":{"v":0,"d":"0.00 ₽"}},{"$nulls":4},"Итог",{"$f":"SUBTOTAL(109,Развлечения[Выделенные])","v":{"v":0,"d":"0.00 ₽"}},{"$f":"SUBTOTAL(109,Развлечения[Фактические])","v":{"v":0,"d":"0.00 ₽"}},{"$f":"SUBTOTAL(109,Развлечения[Разница])","v":{"v":0,"d":"0.00 ₽"}}]
[]
[null,null,"ПОЕЗДКИ",{"$nulls":7},"РАЗНОЕ"]
[null,null,"Наименование","Выделенные","Фактические","Разница",{"$nulls":4},"Наименование","Выделенные","Фактические","Разница"]
[null,null,"Авиабилеты",null,null,{"$f":"Путешествия[[#This Row],[Выделенные]]-Путешествия[[#This Row],[Фактические]]","v":{"v":0,"d":"0.00 ₽"}},{"$nulls":4},"Праздничные фотографии",null,null,{"$f":"Прочее[[#This Row],[Выделенные]]-Прочее[[#This Row],[Фактические]]","v":{"v":0,"d":"0.00 ₽"}}]
[null,null,"Жилье",null,null,{"$f":"Путешествия[[#This Row],[Выделенные]]-Путешествия[[#This Row],[Фактические]]","v":{"v":0,"d":"0.00 ₽"}},{"$nulls":4},"Бензин ",null,null,{"$f":"Прочее[[#This Row],[Выделенные]]-Прочее[[#This Row],[Фактические]]","v":{"v":0,"d":"0.00 ₽"}}]
[null,null,"Транспорт",null,null,{"$f":"Путешествия[[#This Row],[Выделенные]]-Путешествия[[#This Row],[Фактические]]","v":{"v":0,"d":"0.00 ₽"}},{"$nulls":4},"Другое (нажмите клавишу TAB в последнем столбце этой строки, чтобы добавить строку)",null,null,{"$f":"Прочее[[#This Row],[Выделенные]]-Прочее[[#This Row],[Фактические]]","v":{"v":0,"d":"0.00 ₽"}}]
[null,null,"Другое (нажмите клавишу TAB в последнем столбце этой строки, чтобы добавить строку)",null,null,{"$f":"Путешествия[[#This Row],[Выделенные]]-Путешествия[[#This Row],[Фактические]]","v":{"v":0,"d":"0.00 ₽"}}]
[null,null,"Итог",{"$f":"SUBTOTAL(109,Путешествия[Выделенные])","v":{"v":0,"d":"0.00 ₽"}},{"$f":"SUBTOTAL(109,Путешествия[Фактические])","v":{"v":0,"d":"0.00 ₽"}},{"$f":"SUBTOTAL(109,Путешествия[Разница])","v":{"v":0,"d":"0.00 ₽"}},{"$nulls":4},"Итог",{"$f":"SUBTOTAL(109,Прочее[Выделенные])","v":{"v":0,"d":"0.00 ₽"}},{"$f":"SUBTOTAL(109,Прочее[Фактические])","v":{"v":0,"d":"0.00 ₽"}},{"$f":"SUBTOTAL(109,Прочее[Разница])","v":{"v":0,"d":"0.00 ₽"}}]